[Event "FIDE WSTC Open 65 2025"]
[Site "Prague"]
[Date "2025.02.21"]
[Round "5.7"]
[White "Lederman, Leon"]
[Black "Sibilio, Mario"]
[Result "1/2-1/2"]
[Annotator "RC"]
[ECO "B09"]
[WhiteElo "2198"]
[BlackElo "2229"]
[PlyCount "161"]
[EventDate "2025.02.17"]
[EventType "team-tourn"]
[EventCountry "CZE"]
[SourceTitle "playchess.com"]
[Source "ChessBase"]
[SourceQuality "1"]
[TimeControl "40/5400+30:1800+30"]

1. e4 {[%emt 0:00:05]} d6 {[%emt 0:00:06]} 2. d4 {[%emt 0:00:04]} Nf6 {[%emt 0:00:08]} 3. Nc3 {[%emt 0:00:02]} g6 {[%emt 0:00:08]} 4. f4 {[%emt 0:00:08]} Bg7 {[%emt 0:00:16]} 5. Nf3 {[%emt 0:00:07]} O-O {[%emt 0:00:10]} 6. Bd3 {[%emt 0:00:04]} Na6 {[%emt 0:00:28]} 7. e5 {[%emt 0:02:44]} Ne8 {[%emt 0:00:16]} 8. Ne4 {[%emt 0:00:48]} Nb4 {[%emt 0:04:47]} 9. O-O {[%emt 0:04:19]} Bf5 {[%emt 0:27:29]} 10. Nf2 {[%emt 0:00:51]} Nxd3 {[%emt 0:03:08]} 11. Nxd3 {[%emt 0:00:07]} c5 {[%emt 0:05:29]} 12. c3 {[%emt 0:13:16]} cxd4 {[%emt 0:00:55]} 13. cxd4 {[%emt 0:00:07]} Nc7 {[%emt 0:00:25]} 14. Nf2 {[%emt 0:00:45]} Qd7 {[%emt 0:02:06]} 15. Be3 {[%emt 0:03:29]} Nd5 {[%emt 0:07:28]} 16. Qd2 {[%emt 0:01:17]} Rac8 {[%emt 0:03:54]} 17. Rac1 {[%emt 0:00:56]} f6 {[%emt 0:01:24]} 18. Rxc8 {[%emt 0:10:17]} Rxc8 {[%emt 0:00:18]} 19. Rc1 {[%emt 0:00:01]} Rxc1+ {[%emt 0:12:57]} 20. Qxc1 {[%emt 0:00:08]} Qc6 {[%emt 0:01:13]} 21. Qxc6 {[%emt 0:12:10]} bxc6 {[%emt 0:00:02]} 22. Bd2 {[%emt 0:00:08]} Bb1 {[%emt 0:05:46]} 23. a3 {[%emt 0:00:43]} Kf7 {[%emt 0:00:31]} 24. exd6 {[%emt 0:05:55]} exd6 {[%emt 0:00:02]} 25. g4 {[%emt 0:07:46]} Ke6 {[%emt 0:02:07]} 26. Kg2 {[%emt 0:01:04]} Nb6 {[%emt 0:01:43]} 27. Nd1 {[%emt 0:01:08]} Nc4 {[%emt 0:00:55]} 28. Nc3 {[%emt 0:02:04]} Bd3 {[%emt 0:01:38]} 29. Bc1 {[%emt 0:00:28]} Nb6 {[%emt 0:03:11]} 30. Ne1 {[%emt 0:04:01]} Bc4 {[%emt 0:00:40]} 31. Kf2 {[%emt 0:01:59]} f5 {[%emt 0:01:10]} 32. gxf5+ {[%emt 0:00:40]} Kxf5 {[%emt 0:00:49]} 33. Be3 {[%emt 0:00:13]} Bb3 {[%emt 0:00:57]} 34. Nf3 {[%emt 0:04:11]} Nc4 {[%emt 0:01:18]} 35. Bc1 {[%emt 0:01:33]} Bf6 {[%emt 0:02:35]} 36. h3 {[%emt 0:05:51]} Nb6 {[%emt 0:01:00]} 37. Be3 {[%emt 0:06:18]} a6 {[%emt 0:05:00]} 38. Nd2 {[%emt 0:01:40]} Bd5 {[%emt 0:02:48]} 39. b3 {[%emt 0:08:09]} Bh4+ {[%emt 0:01:43]} 40. Kf1 {[%emt 0:00:41]} h5 {[%emt 0:00:48]} 41. a4 {[%emt 0:32:47]} Ke6 {[%emt 0:31:44]} 42. Bf2 {[%emt 0:01:28]} Bd8 {[%emt 0:00:16]} 43. Be3 {[%emt 0:00:00]} Nd7 {[%emt 0:00:00]} 44. Kf2 {[%emt 0:00:00]} Ba5 {[%emt 0:00:00]} 45. Nxd5 {[%emt 0:00:00]} Kxd5 {[%emt 0:00:00]} 46. Nc4 {[%emt 0:00:00]} Bc7 {[%emt 0:00:00]} 47. Ke2 {[%emt 0:00:00]} Ke4 {[%emt 0:00:00]} 48. Nd2+ {[%emt 0:00:00]} Kf5 {[%emt 0:00:00]} 49. d5 {[%emt 0:00:00]} cxd5 {[%emt 0:00:00]} 50. b4 {[%emt 0:00:00]} d4 {[%emt 0:00:00]} 51. Bxd4 {[%emt 0:00:00]} Kxf4 {[%emt 0:00:00]} 52. b5 {[%emt 0:00:00]} axb5 {[%emt 0:00:00]} 53. axb5 {[%emt 0:00:00]} d5 {[%emt 0:00:00]} 54. Kf2 {[%emt 0:00:00]} Bb6 {[%emt 0:00:00]} 55. Nb3 {[%emt 0:00:00]} g5 {[%emt 0:00:00]} 56. Bxb6 {[%emt 0:00:00]} Nxb6 {[%emt 0:00:00]} 57. Nd4 {[%emt 0:00:00]} Ke4 {[%emt 0:00:00]} 58. Ne6 {[%emt 0:00:00]} Kf5 {[%emt 0:00:00]} 59. Nd4+ {[%emt 0:00:00]} Ke5 {[%emt 0:00:00]} 60. Nf3+ {[%emt 0:00:00]} Kf4 {[%emt 0:00:00]} 61. Nd4 {[%emt 0:00:00]} g4 {[%emt 0:00:00]} 62. Ne2+ {[%emt 0:00:00]} Kg5 {[%emt 0:00:00]} 63. hxg4 {[%emt 0:00:00]} Kxg4 {[%emt 0:00:00]} 64. Nd4 {[%emt 0:00:00]} Kf4 {[%emt 0:00:00]} 65. Ne2+ {[%emt 0:00:00]} Ke5 {[%emt 0:00:00]} 66. Kg3 {[%emt 0:00:00]} Ke4 {[%emt 0:00:00]} 67. Nc3+ {[%emt 0:04:52]} Kf5 {[%emt 0:00:00]} 68. Ne2 {[%emt 0:03:09]} Kg5 {[%emt 0:00:00]} 69. Nd4 {[%emt 0:01:17]} Nc4 {[%emt 0:00:14]} 70. Nf3+ {[%emt 0:01:49]} Kf5 {[%emt 0:04:24]} 71. Nd4+ {[%emt 0:00:10]} Ke4 {[%emt 0:00:38]} 72. Nb3 {[%emt 0:01:48]} Nb6 {[%emt 0:00:35]} 73. Kh4 {[%emt 0:00:20]} Kd3 {[%emt 0:00:08]} 74. Kxh5 {[%emt 0:00:12]} Kc4 {[%emt 0:00:07]} 75. Nd2+ {[%emt 0:01:05]} Kxb5 {[%emt 0:00:07]} 76. Kg4 {[%emt 0:00:08]} Nc4 {[%emt 0:00:33]} 77. Nf3 {[%emt 0:00:09]} Kb4 {[%emt 0:00:15]} 78. Nd4 {[%emt 0:00:39]} Kc3 {[%emt 0:01:41]} 79. Ne6 {[%emt 0:00:03]} Ne5+ {[%emt 0:01:06]} 80. Kf4 {[%emt 0:00:25]} d4 {[%emt 0:00:24]} 81. Nxd4 {[%emt 0:00:12]} 1/2-1/2

[Event "FIDE WSTC Open 65 2025"]
[Site "Prague"]
[Date "2025.02.21"]
[Round "5.8"]
[White "Cocozza, Mario"]
[Black "Gal, Moshe"]
[Result "0-1"]
[Annotator "ChessBase"]
[ECO "B31"]
[WhiteElo "2154"]
[BlackElo "2059"]
[PlyCount "60"]
[EventDate "2025.02.17"]
[EventType "team-tourn"]
[EventCountry "CZE"]
[SourceTitle "playchess.com"]
[Source "ChessBase"]
[SourceQuality "1"]
[TimeControl "40/5400+30:1800+30"]

1. e4 {[%emt 0:00:20]} c5 {[%emt 0:00:00]} 2. Nf3 {[%emt 0:00:34]} Nc6 {[%emt 0:00:23]} 3. Bb5 {[%emt 0:00:51]} g6 {[%emt 0:00:15]} 4. Bxc6 {[%emt 0:00:33]} dxc6 {[%emt 0:00:34]} 5. d3 {[%emt 0:00:21]} Bg7 {[%emt 0:00:07]} 6. h3 {[%emt 0:00:13]} Nf6 {[%emt 0:01:04]} 7. O-O {[%emt 0:00:53]} Nd7 {[%emt 0:00:47]} 8. Nc3 {[%emt 0:06:59]} e5 {[%emt 0:01:07]} 9. a3 {[%emt 0:05:00]} Nf8 {[%emt 0:05:26]} 10. b4 {[%emt 0:05:51]} Ne6 {[%emt 0:05:15]} 11. Na4 {[%emt 0:07:25]} b6 {[%emt 0:07:45]} 12. Be3 {[%emt 0:07:31]} Qe7 {[%emt 0:03:33]} 13. Qd2 {[%emt 0:03:22]} h6 {[%emt 0:04:54]} 14. Nh2 {[%emt 0:18:57]} g5 {[%emt 0:05:43]} 15. Rfe1 {[%emt 0:06:12]} h5 {[%emt 0:04:22]} 16. f3 {[%emt 0:03:42]} Nf4 {[%emt 0:07:54]} 17. bxc5 {[%emt 0:08:39]} b5 {[%emt 0:01:27]} 18. Nc3 {[%emt 0:02:08]} g4 {[%emt 0:03:23]} 19. hxg4 {[%emt 0:09:01]} hxg4 {[%emt 0:07:10]} 20. g3 {[%emt 0:00:09]} gxf3 {[%emt 0:04:41]} 21. gxf4 {[%emt 0:08:52]} exf4 {[%emt 0:01:02]} 22. e5 {[%emt 0:03:17]} Qg5+ {[%emt 0:02:45]} 23. Kh1 {[%emt 0:00:34]} fxe3 {[%emt 0:00:45]} 24. Rxe3 {[%emt 0:00:04]} Bh3 {[%emt 0:01:26]} 25. Ne4 {[%emt 0:00:53]} Bg2+ {[%emt 0:02:35]} 26. Kg1 {[%emt 0:00:01]} Qf4 {[%emt 0:02:42]} 27. Nf1 {[%emt 0:01:04]} Rh1+ {[%emt 0:00:40]} 28. Kf2 {[%emt 0:00:02]} Qh4+ {[%emt 0:00:16]} 29. Neg3 {[%emt 0:00:26]} Bxf1 {[%emt 0:00:26]} 30. Kxf3 {[%emt 0:00:56]} Rh2 {[%emt 0:00:47]} 0-1

[Event "FIDE WSTC Open 65 2025"]
[Site "Prague"]
[Date "2025.02.21"]
[Round "5.9"]
[White "Pribyl, Josef"]
[Black "Vaisser, Anatoly"]
[Result "0-1"]
[Annotator "RC"]
[ECO "C01"]
[WhiteElo "2184"]
[BlackElo "2452"]
[PlyCount "84"]
[EventDate "2025.02.17"]
[EventType "team-tourn"]
[EventCountry "CZE"]
[SourceTitle "playchess.com"]
[Source "ChessBase"]
[SourceQuality "1"]
[TimeControl "40/5400+30:1800+30"]

1. e4 {[%emt 0:00:03]} e6 {[%emt 0:00:23]} 2. d4 {[%emt 0:00:17]} d5 {[%emt 0:00:03]} 3. Nc3 {[%emt 0:00:39]} Nf6 {[%emt 0:00:30]} 4. exd5 {[%emt 0:02:08]} exd5 {[%emt 0:00:22]} 5. Nf3 {[%emt 0:01:18]} Be7 {[%emt 0:06:28]} 6. Bf4 {[%emt 0:00:48]} c6 {[%emt 0:03:13]} 7. h3 {[%emt 0:03:48]} Nbd7 {[%emt 0:05:53]} 8. Be2 {[%emt 0:05:11]} Nf8 {[%emt 0:04:25]} 9. Qd3 {[%emt 0:03:13]} Ng6 {[%emt 0:04:41]} 10. Be3 {[%emt 0:04:30]} Bd6 {[%emt 0:01:37]} 11. g3 {[%emt 0:05:53]} Qe7 {[%emt 0:05:08]} 12. Nd2 {[%emt 0:01:59]} O-O {[%emt 0:03:31]} 13. O-O-O {[%emt 0:08:19]} Re8 {[%emt 0:00:53]} 14. Rdg1 {[%emt 0:01:09]} b5 {[%emt 0:02:40]} 15. Bf3 {[%emt 0:02:31]} a5 {[%emt 0:02:41]} 16. Nb3 {[%emt 0:03:02]} a4 {[%emt 0:09:43]} 17. Nc5 {[%emt 0:03:40]} Bxc5 {[%emt 0:00:52]} 18. dxc5 {[%emt 0:00:02]} b4 {[%emt 0:01:34]} 19. Nb1 {[%emt 0:01:14]} Ne5 {[%emt 0:01:29]} 20. Qd1 {[%emt 0:00:21]} a3 {[%emt 0:01:41]} 21. bxa3 {[%emt 0:01:12]} bxa3 {[%emt 0:05:46]} 22. Bd4 {[%emt 0:00:40]} Bf5 {[%emt 0:09:07]} 23. Re1 {[%emt 0:01:15]} Be4 {[%emt 0:00:37]} 24. Bxe4 {[%emt 0:03:27]} dxe4 {[%emt 0:01:15]} 25. Nd2 {[%emt 0:02:02]} Ra4 {[%emt 0:08:42]} 26. Nxe4 {[%emt 0:02:52]} Rb8 {[%emt 0:05:02]} 27. Nc3 {[%emt 0:04:38]} Qb7 {[%emt 0:02:14]} 28. Bxe5 {[%emt 0:06:19]} Qb2+ {[%emt 0:00:37]} 29. Kd2 {[%emt 0:00:02]} Rd8+ {[%emt 0:00:27]} 30. Ke3 {[%emt 0:05:45]} Rxd1 {[%emt 0:00:18]} 31. Rxd1 {[%emt 0:00:58]} Nd5+ {[%emt 0:03:46]} 32. Kf3 {[%emt 0:01:26]} Ra8 {[%emt 0:01:15]} 33. Rd3 {[%emt 0:08:44]} Nxc3 {[%emt 0:02:41]} 34. Bxc3 {[%emt 0:00:04]} Qxa2 {[%emt 0:01:22]} 35. Rhd1 {[%emt 0:04:21]} h6 {[%emt 0:00:53]} 36. Bb4 {[%emt 0:03:13]} Qxc2 {[%emt 0:02:17]} 37. R1d2 {[%emt 0:00:23]} Qc1 {[%emt 0:01:01]} 38. Rd1 {[%emt 0:01:32]} Qb2 {[%emt 0:00:18]} 39. Bc3 {[%emt 0:00:27]} Qb5 {[%emt 0:00:39]} 40. Bd4 {[%emt 0:00:37]} a2 {[%emt 0:01:20]} 41. Kg2 {[%emt 0:31:25]} Rd8 {[%emt 0:31:26]} 42. R3d2 {[%emt 0:04:16]} Qb1 {[%emt 0:01:16]} 0-1

[Event "FIDE WSTC Open 65 2025"]
[Site "Prague"]
[Date "2025.02.21"]
[Round "5.10"]
[White "Haik, Aldo"]
[Black "Babula, Milan"]
[Result "1/2-1/2"]
[Annotator "RC"]
[ECO "E99"]
[WhiteElo "2377"]
[BlackElo "2077"]
[PlyCount "91"]
[EventDate "2025.02.17"]
[EventType "team-tourn"]
[EventCountry "CZE"]
[SourceTitle "playchess.com"]
[Source "ChessBase"]
[SourceQuality "1"]
[TimeControl "40/5400+30:1800+30"]

1. d4 {[%emt 0:00:13]} Nf6 {[%emt 0:00:04]} 2. c4 {[%emt 0:00:09]} g6 {[%emt 0:00:02]} 3. Nc3 {[%emt 0:00:20]} Bg7 {[%emt 0:00:01]} 4. e4 {[%emt 0:02:50]} d6 {[%emt 0:00:04]} 5. Nf3 {[%emt 0:00:17]} O-O {[%emt 0:00:07]} 6. Be2 {[%emt 0:00:06]} e5 {[%emt 0:00:10]} 7. O-O {[%emt 0:00:14]} Nc6 {[%emt 0:00:04]} 8. d5 {[%emt 0:00:26]} Ne7 {[%emt 0:00:02]} 9. Ne1 {[%emt 0:00:57]} Nd7 {[%emt 0:00:38]} 10. f3 {[%emt 0:00:47]} f5 {[%emt 0:00:40]} 11. g4 {[%emt 0:00:56]} h5 {[%emt 0:09:54]} 12. g5 {[%emt 0:16:09]} a5 {[%emt 0:19:14]} 13. h4 {[%emt 0:01:19]} Nc5 {[%emt 0:01:13]} 14. Nd3 {[%emt 0:08:27]} b6 {[%emt 0:04:23]} 15. Be3 {[%emt 0:03:19]} Bd7 {[%emt 0:01:20]} 16. Rc1 {[%emt 0:03:52]} c6 {[%emt 0:10:16]} 17. Qd2 {[%emt 0:02:01]} Nxd3 {[%emt 0:08:12]} 18. Bxd3 {[%emt 0:00:18]} c5 {[%emt 0:00:02]} 19. b3 {[%emt 0:02:34]} Rf7 {[%emt 0:03:27]} 20. Nb5 {[%emt 0:02:24]} f4 {[%emt 0:05:42]} 21. Bf2 {[%emt 0:00:36]} Nc8 {[%emt 0:00:01]} 22. Rfd1 {[%emt 0:02:34]} Bf8 {[%emt 0:00:04]} 23. Bf1 {[%emt 0:00:34]} Na7 {[%emt 0:00:07]} 24. Nc3 {[%emt 0:01:06]} Rb8 {[%emt 0:04:57]} 25. Kh2 {[%emt 0:08:17]} Kg7 {[%emt 0:05:48]} 26. a3 {[%emt 0:04:11]} b5 {[%emt 0:02:10]} 27. b4 {[%emt 0:00:43]} axb4 {[%emt 0:03:44]} 28. axb4 {[%emt 0:00:10]} cxb4 {[%emt 0:00:57]} 29. Bxa7 {[%emt 0:10:28]} bxc3 {[%emt 0:00:03]} 30. Qxc3 {[%emt 0:00:10]} Rb7 {[%emt 0:02:35]} 31. Bf2 {[%emt 0:00:09]} bxc4 {[%emt 0:02:58]} 32. Bxc4 {[%emt 0:04:45]} Ba4 {[%emt 0:00:03]} 33. Rd2 {[%emt 0:04:14]} Bb5 {[%emt 0:03:25]} 34. Bxb5 {[%emt 0:04:49]} Rxb5 {[%emt 0:00:01]} 35. Ra2 {[%emt 0:01:12]} Qb8 {[%emt 0:06:06]} 36. Qc8 {[%emt 0:02:56]} Qxc8 {[%emt 0:03:06]} 37. Rxc8 {[%emt 0:00:27]} Rfb7 {[%emt 0:00:17]} 38. Rac2 {[%emt 0:05:47]} Be7 {[%emt 0:00:20]} 39. R8c7 {[%emt 0:00:15]} Kf7 {[%emt 0:01:18]} 40. Rxb7 {[%emt 0:00:23]} Rxb7 {[%emt 0:00:01]} 41. Rc8 {[%emt 0:30:13]} Rb2 {[%emt 0:31:05]} 42. Kg2 {[%emt 0:00:12]} Ra2 {[%emt 0:00:46]} 43. Rb8 {[%emt 0:00:35]} Rc2 {[%emt 0:04:18]} 44. Kf1 {[%emt 0:00:20]} Rc3 {[%emt 0:00:22]} 45. Kg2 {[%emt 0:00:31]} Rc2 {[%emt 0:00:05]} 46. Ra8 {[%emt 0:00:36]} 1/2-1/2

[Event "FIDE WSTC Open 65 2025"]
[Site "Prague"]
[Date "2025.02.21"]
[Round "5.11"]
[White "Vrana, Frantisek"]
[Black "Sharif, Mehrshad"]
[Result "0-1"]
[Annotator "RC"]
[ECO "D01"]
[WhiteElo "2115"]
[BlackElo "2318"]
[PlyCount "84"]
[EventDate "2025.02.17"]
[EventType "team-tourn"]
[EventCountry "CZE"]
[SourceTitle "playchess.com"]
[Source "ChessBase"]
[SourceQuality "1"]
[TimeControl "40/5400+30:1800+30"]

1. d4 {[%emt 0:00:04]} d5 {[%emt 0:00:19]} 2. Nc3 {[%emt 0:00:18]} Nf6 {[%emt 0:00:27]} 3. Bg5 {[%emt 0:00:12]} c6 {[%emt 0:00:45]} 4. Qd3 {[%emt 0:00:30]} Qa5 {[%emt 0:01:52]} 5. Bxf6 {[%emt 0:02:47]} exf6 {[%emt 0:01:06]} 6. e4 {[%emt 0:02:15]} dxe4 {[%emt 0:02:34]} 7. Qxe4+ {[%emt 0:00:09]} Be6 {[%emt 0:01:48]} 8. Bd3 {[%emt 0:05:22]} Ba3 {[%emt 0:03:16]} 9. O-O-O {[%emt 0:10:39]} Qxc3 {[%emt 0:03:38]} 10. bxa3 {[%emt 0:00:07]} Nd7 {[%emt 0:01:04]} 11. Ne2 {[%emt 0:03:18]} Qxa3+ {[%emt 0:00:58]} 12. Kd2 {[%emt 0:00:28]} Nb6 {[%emt 0:05:13]} 13. Ke1 {[%emt 0:07:23]} Qxa2 {[%emt 0:03:49]} 14. f3 {[%emt 0:04:10]} Qd5 {[%emt 0:03:08]} 15. Nf4 {[%emt 0:08:46]} Qxe4+ {[%emt 0:00:35]} 16. Bxe4 {[%emt 0:00:12]} O-O-O {[%emt 0:01:44]} 17. c3 {[%emt 0:02:28]} Nd5 {[%emt 0:07:58]} 18. Bxd5 {[%emt 0:01:24]} Bxd5 {[%emt 0:00:42]} 19. Ra1 {[%emt 0:02:09]} Kb8 {[%emt 0:04:24]} 20. Kd2 {[%emt 0:05:42]} c5 {[%emt 0:02:44]} 21. Kd3 {[%emt 0:00:23]} cxd4 {[%emt 0:01:13]} 22. cxd4 {[%emt 0:00:05]} Bc6 {[%emt 0:00:41]} 23. Rhd1 {[%emt 0:04:00]} Rd6 {[%emt 0:01:59]} 24. Rd2 {[%emt 0:03:43]} Bb5+ {[%emt 0:05:26]} 25. Ke3 {[%emt 0:03:33]} Re8+ {[%emt 0:01:11]} 26. Kf2 {[%emt 0:00:03]} Red8 {[%emt 0:00:37]} 27. Ke3 {[%emt 0:00:07]} f5 {[%emt 0:02:13]} 28. g3 {[%emt 0:00:43]} g5 {[%emt 0:04:18]} 29. Ng2 {[%emt 0:04:49]} Rh6 {[%emt 0:03:01]} 30. Rh1 {[%emt 0:02:24]} Ra6 {[%emt 0:05:16]} 31. Rc1 {[%emt 0:04:56]} Ra3+ {[%emt 0:01:51]} 32. Kf2 {[%emt 0:00:07]} Bc6 {[%emt 0:01:47]} 33. Ne1 {[%emt 0:00:26]} a5 {[%emt 0:07:58]} 34. Rc5 {[%emt 0:00:36]} Rd5 {[%emt 0:00:26]} 35. Rc1 {[%emt 0:06:10]} Rb3 {[%emt 0:02:59]} 36. Ra1 {[%emt 0:02:27]} Rb4 {[%emt 0:02:22]} 37. Nc2 {[%emt 0:00:55]} Rb2 {[%emt 0:00:39]} 38. Ke3 {[%emt 0:00:44]} Rdb5 {[%emt 0:02:12]} 39. Ne1 {[%emt 0:05:31]} f4+ {[%emt 0:05:42]} 40. gxf4 {[%emt 0:02:06]} gxf4+ {[%emt 0:00:16]} 41. Ke2 {[%emt 0:30:32]} R5b3 {[%emt 0:37:25]} 42. Rxa5 {[%emt 0:02:14]} Re3+ {[%emt 0:00:16]} 0-1

[Event "FIDE WSTC Open 65 2025"]
[Site "Prague"]
[Date "2025.02.21"]
[Round "5.12"]
[White "Giffard, Nicolas"]
[Black "Cesal, Jaroslav"]
[Result "1/2-1/2"]
[Annotator "ChessBase"]
[ECO "D12"]
[WhiteElo "2154"]
[BlackElo "2049"]
[PlyCount "120"]
[EventDate "2025.02.17"]
[EventType "team-tourn"]
[EventCountry "CZE"]
[SourceTitle "playchess.com"]
[Source "ChessBase"]
[SourceQuality "1"]
[TimeControl "40/5400+30:1800+30"]

1. d4 {[%emt 0:00:13]} d5 {[%emt 0:00:05]} 2. Nf3 {[%emt 0:00:23]} Nf6 {[%emt 0:00:14]} 3. c4 {[%emt 0:00:12]} c6 {[%emt 0:00:09]} 4. e3 {[%emt 0:01:06]} Bf5 {[%emt 0:01:56]} 5. Nc3 {[%emt 0:07:01]} e6 {[%emt 0:02:40]} 6. Bd3 {[%emt 0:04:46]} dxc4 {[%emt 0:04:00]} 7. Bxc4 {[%emt 0:01:32]} Nbd7 {[%emt 0:01:47]} 8. O-O {[%emt 0:00:33]} Be7 {[%emt 0:01:35]} 9. Qe2 {[%emt 0:02:24]} O-O {[%emt 0:06:06]} 10. Rd1 {[%emt 0:02:50]} Re8 {[%emt 0:05:59]} 11. e4 {[%emt 0:06:40]} Bg6 {[%emt 0:00:09]} 12. e5 {[%emt 0:09:15]} Nd5 {[%emt 0:00:07]} 13. Ne4 {[%emt 0:01:47]} h6 {[%emt 0:05:18]} 14. Bd3 {[%emt 0:04:22]} Qb6 {[%emt 0:09:33]} 15. a3 {[%emt 0:06:19]} Red8 {[%emt 0:04:57]} 16. h3 {[%emt 0:01:43]} Rac8 {[%emt 0:03:27]} 17. Rb1 {[%emt 0:00:27]} c5 {[%emt 0:05:42]} 18. dxc5 {[%emt 0:04:01]} Nxc5 {[%emt 0:01:25]} 19. Nxc5 {[%emt 0:00:13]} Qxc5 {[%emt 0:01:33]} 20. Bxg6 {[%emt 0:01:26]} fxg6 {[%emt 0:00:07]} 21. Bd2 {[%emt 0:08:42]} Qc4 {[%emt 0:09:45]} 22. Qxc4 {[%emt 0:04:08]} Rxc4 {[%emt 0:00:10]} 23. Rdc1 {[%emt 0:00:23]} Rdc8 {[%emt 0:02:00]} 24. Rxc4 {[%emt 0:00:31]} Rxc4 {[%emt 0:00:07]} 25. Rc1 {[%emt 0:00:06]} Rxc1+ {[%emt 0:05:30]} 26. Bxc1 {[%emt 0:00:15]} Bc5 {[%emt 0:05:12]} 27. Ne1 {[%emt 0:02:10]} Kf7 {[%emt 0:02:21]} 28. h4 {[%emt 0:01:43]} Nb6 {[%emt 0:01:11]} 29. Nd3 {[%emt 0:00:38]} Bd4 {[%emt 0:00:46]} 30. Kf1 {[%emt 0:05:47]} Nc4 {[%emt 0:01:21]} 31. f4 {[%emt 0:00:09]} Ke7 {[%emt 0:03:41]} 32. Ke2 {[%emt 0:01:20]} Kd7 {[%emt 0:01:24]} 33. Kf3 {[%emt 0:00:43]} Kc6 {[%emt 0:02:04]} 34. Ke4 {[%emt 0:00:20]} Bg1 {[%emt 0:00:20]} 35. g4 {[%emt 0:07:44]} Kd7 {[%emt 0:06:14]} 36. h5 {[%emt 0:00:53]} gxh5 {[%emt 0:00:19]} 37. gxh5 {[%emt 0:00:07]} Ke7 {[%emt 0:03:00]} 38. f5 {[%emt 0:05:54]} Nb6 {[%emt 0:01:25]} 39. f6+ {[%emt 0:02:27]} gxf6 {[%emt 0:01:56]} 40. exf6+ {[%emt 0:00:07]} Kxf6 {[%emt 0:00:05]} 41. Bxh6 {[%emt 0:30:07]} Nd5 {[%emt 0:04:55]} 42. Bd2 {[%emt 0:00:00]} b6 {[%emt 0:02:13]} 43. Ne5 {[%emt 0:00:00]} Kg7 {[%emt 0:04:22]} 44. Nf3 {[%emt 0:00:00]} Bf2 {[%emt 0:05:29]} 45. Ke5 {[%emt 0:00:00]} Nf6 {[%emt 0:01:20]} 46. h6+ {[%emt 0:00:00]} Kf7 {[%emt 0:01:58]} 47. Ng5+ {[%emt 0:00:00]} Kg6 {[%emt 0:00:09]} 48. Nxe6 {[%emt 0:00:00]} Ng4+ {[%emt 0:00:27]} 49. Kd6 {[%emt 0:00:00]} Nxh6 {[%emt 0:01:02]} 50. Bxh6 {[%emt 0:00:00]} Kxh6 {[%emt 0:00:05]} 51. Kc6 {[%emt 0:00:00]} Kg6 {[%emt 0:00:16]} 52. Kb7 {[%emt 0:00:00]} Kf5 {[%emt 0:00:39]} 53. Nc7 {[%emt 0:00:00]} Ke4 {[%emt 0:01:15]} 54. Kxa7 {[%emt 0:00:00]} Kd3 {[%emt 0:00:14]} 55. Nd5 {[%emt 0:00:00]} Kc4 {[%emt 0:01:52]} 56. Nxb6+ {[%emt 0:00:00]} Kb5 {[%emt 0:00:52]} 57. a4+ {[%emt 0:00:00]} Ka5 {[%emt 0:00:07]} 58. b4+ {[%emt 0:00:00]} Kxb4 {[%emt 0:00:08]} 59. Ka6 {[%emt 0:00:00]} Bxb6 {[%emt 0:00:08]} 60. Kxb6 {[%emt 0:00:00]} Kxa4 {[%emt 0:00:37]} 1/2-1/2

[Event "FIDE WSTC Open 65 2025"]
[Site "Prague"]
[Date "2025.02.21"]
[Round "5.13"]
[White "Littlewood, Paul E"]
[Black "Roos, Jean-Luc"]
[Result "1/2-1/2"]
[Annotator "RC"]
[ECO "D36"]
[WhiteElo "2309"]
[BlackElo "2165"]
[PlyCount "109"]
[EventDate "2025.02.17"]
[EventType "team-tourn"]
[EventCountry "CZE"]
[SourceTitle "playchess.com"]
[Source "ChessBase"]
[SourceQuality "1"]
[TimeControl "40/5400+30:1800+30"]

1. d4 {[%emt 0:00:07]} d5 {[%emt 0:00:17]} 2. c4 {[%emt 0:00:11]} e6 {[%emt 0:00:09]} 3. Nc3 {[%emt 0:00:21]} Nf6 {[%emt 0:00:25]} 4. cxd5 {[%emt 0:01:09]} exd5 {[%emt 0:00:08]} 5. Bg5 {[%emt 0:00:21]} Be7 {[%emt 0:01:33]} 6. e3 {[%emt 0:00:33]} c6 {[%emt 0:00:37]} 7. Bd3 {[%emt 0:00:13]} O-O {[%emt 0:00:23]} 8. Qc2 {[%emt 0:03:41]} Nbd7 {[%emt 0:00:32]} 9. Nge2 {[%emt 0:00:39]} Re8 {[%emt 0:00:40]} 10. O-O {[%emt 0:04:18]} Nf8 {[%emt 0:00:34]} 11. Rae1 {[%emt 0:02:37]} Be6 {[%emt 0:18:31]} 12. f3 {[%emt 0:07:49]} h6 {[%emt 0:06:51]} 13. Bh4 {[%emt 0:01:55]} a6 {[%emt 0:03:48]} 14. Qd2 {[%emt 0:05:44]} Ne4 {[%emt 0:03:20]} 15. Nxe4 {[%emt 0:08:53]} Bxh4 {[%emt 0:00:23]} 16. N4g3 {[%emt 0:00:09]} Qd6 {[%emt 0:05:55]} 17. Bb1 {[%emt 0:04:59]} Rad8 {[%emt 0:01:47]} 18. Rd1 {[%emt 0:08:44]} Bc8 {[%emt 0:12:45]} 19. e4 {[%emt 0:06:27]} dxe4 {[%emt 0:01:43]} 20. fxe4 {[%emt 0:00:38]} Bxg3 {[%emt 0:04:03]} 21. Nxg3 {[%emt 0:06:48]} Bg4 {[%emt 0:00:24]} 22. Qf2 {[%emt 0:02:47]} Bxd1 {[%emt 0:02:16]} 23. Qxf7+ {[%emt 0:00:11]} Kh8 {[%emt 0:00:14]} 24. Rxd1 {[%emt 0:00:10]} Qe7 {[%emt 0:07:06]} 25. Qf2 {[%emt 0:03:01]} Ne6 {[%emt 0:01:02]} 26. e5 {[%emt 0:03:56]} Nf8 {[%emt 0:07:59]} 27. Nf5 {[%emt 0:03:41]} Qxe5 {[%emt 0:02:02]} 28. Rf1 {[%emt 0:02:03]} Qf6 {[%emt 0:05:27]} 29. Qg3 {[%emt 0:06:30]} Qg5 {[%emt 0:04:58]} 30. Qc3 {[%emt 0:05:51]} Ne6 {[%emt 0:03:55]} 31. Qf3 {[%emt 0:06:40]} Qf6 {[%emt 0:03:11]} 32. Qd3 {[%emt 0:02:31]} Ng5 {[%emt 0:01:33]} 33. h4 {[%emt 0:00:41]} Ne4 {[%emt 0:00:12]} 34. Ng3 {[%emt 0:00:28]} Qxd4+ {[%emt 0:00:39]} 35. Qxd4 {[%emt 0:00:11]} Rxd4 {[%emt 0:00:04]} 36. Nxe4 {[%emt 0:00:51]} Rdxe4 {[%emt 0:00:21]} 37. Bxe4 {[%emt 0:00:07]} Rxe4 {[%emt 0:00:06]} 38. Rf7 {[%emt 0:00:23]} Rb4 {[%emt 0:00:19]} 39. b3 {[%emt 0:00:07]} Kg8 {[%emt 0:00:24]} 40. Rd7 {[%emt 0:00:38]} a5 {[%emt 0:00:13]} 41. h5 {[%emt 0:31:47]} Rb5 {[%emt 0:04:06]} 42. Rc7 {[%emt 0:00:00]} Rxh5 {[%emt 0:02:45]} 43. Rxb7 {[%emt 0:00:00]} Rb5 {[%emt 0:02:02]} 44. Rc7 {[%emt 0:00:00]} Rc5 {[%emt 0:00:07]} 45. a3 {[%emt 0:00:00]} Kh7 {[%emt 0:02:51]} 46. b4 {[%emt 0:00:00]} axb4 {[%emt 0:00:07]} 47. axb4 {[%emt 0:00:00]} Rc4 {[%emt 0:00:26]} 48. Rb7 {[%emt 0:00:00]} h5 {[%emt 0:03:55]} 49. b5 {[%emt 0:00:00]} cxb5 {[%emt 0:01:23]} 50. Rxb5 {[%emt 0:00:00]} h4 {[%emt 0:00:07]} 51. Kh2 {[%emt 0:00:00]} Kh6 {[%emt 0:00:40]} 52. g3 {[%emt 0:00:00]} g5 {[%emt 0:02:39]} 53. gxh4 {[%emt 0:00:00]} Rxh4+ {[%emt 0:00:09]} 54. Kg3 {[%emt 0:00:00]} Ra4 {[%emt 0:00:09]} 55. Rb8 {[%emt 0:00:00]} 1/2-1/2